bitfinex-derivatives/quotes_BTCF0:USTF0_20250614
["timestamp","ask_amount","ask_price","bid_price","bid_amount"]
[1749876794297,0.06384186,105380.0,105370.0,3.08910208]
[1749876794500,0.06384186,105380.0,105370.0,3.11423709]
[1749876794706,0.06384186,105380.0,105370.0,3.10393034]
[1749876795002,0.06384186,105380.0,105370.0,3.11423709]
[1749876795195,0.06384186,105380.0,105370.0,3.10393034]
[1749876795392,0.06384186,105380.0,105370.0,3.1142371]
[1749876795601,0.06384186,105380.0,105370.0,3.10393034]
[1749876796002,0.06384186,105380.0,105370.0,3.09940883]
[1749876796303,0.06384186,105380.0,105370.0,3.11423709]
[1749876796497,0.06384186,105380.0,105370.0,3.09940883]
[1749876796704,0.06384186,105380.0,105370.0,3.10393034]
[1749876797001,0.06384186,105380.0,105370.0,3.11423709]
[1749876797603,0.06384186,105380.0,105370.0,3.08910208]
[1749876797807,0.06384186,105380.0,105370.0,3.11423709]
[1749876798299,0.06384186,105380.0,105370.0,3.09940915]
[1749876798502,0.06384186,105380.0,105370.0,3.11423741]
[1749876798698,0.06384186,105380.0,105370.0,3.08910208]
[1749876798897,0.25353936,105380.0,105370.0,3.10389034]
[1749876799101,0.06384186,105380.0,105370.0,3.09936915]
[1749876799307,0.06384186,105380.0,105370.0,3.11419741]
[1749876799606,0.06384186,105380.0,105370.0,3.11419749]
[1749876799794,0.06384186,105380.0,105370.0,3.10389034]
[1749876799998,0.06384186,105380.0,105370.0,3.11419557]
[1749876800399,0.06384186,105380.0,105370.0,3.11419558]
[1749876800606,0.06384186,105380.0,105370.0,3.1141956]
[1749876800903,0.06384186,105380.0,105370.0,3.09936734]
[1749876801095,0.06384186,105380.0,105370.0,3.1141956]
[1749876801300,0.06384186,105380.0,105370.0,3.11420363]
[1749876801499,0.06384186,105380.0,105370.0,3.02984151]
[1749876801808,0.06384186,105380.0,105370.0,3.05046807]
[1749876802002,0.06384186,105380.0,105370.0,3.06529633]
[1749876802198,0.06384186,105380.0,105370.0,3.04015479]
[1749876802404,0.06384186,105380.0,105370.0,3.05046807]
[1749876802605,0.06384186,105380.0,105370.0,3.06529633]
[1749876803596,0.06384186,105380.0,105370.0,3.04015479]
[1749876803904,0.06384186,105380.0,105370.0,3.06529665]
[1749876804099,0.06384186,105380.0,105370.0,3.05046839]
[1749876804507,0.06384186,105380.0,105370.0,3.06529665]
[1749876804896,0.06384186,105380.0,105370.0,3.05046838]
[1749876805303,0.06384186,105380.0,105370.0,3.0504687]
[1749876805502,0.06384186,105380.0,105370.0,3.05046902]
[1749876805707,0.06384186,105380.0,105370.0,3.06529734]
[1749876805909,0.06384186,105380.0,105370.0,3.06529738]
[1749876806110,0.06384186,105380.0,105370.0,3.05498305]
[1749876806308,0.06384186,105380.0,105370.0,3.05047096]
[1749876806613,0.06384186,105380.0,105370.0,3.06529984]
[1749876806805,0.25353926,105380.0,105370.0,2.0582799]
[1749876807005,0.28523926,105380.0,105370.0,2.69973803]
[1749876807199,0.28523926,105380.0,105370.0,2.71005507]
[1749876807403,0.28523926,105380.0,105370.0,2.65076041]
[1749876807604,0.28523926,105380.0,105370.0,2.63593184]
[1749876807803,0.28523926,105380.0,105370.0,2.64044338]
[1749876808003,0.28523926,105380.0,105370.0,2.65076044]
[1749876808212,0.28523926,105380.0,105370.0,2.63593185]
[1749876808412,0.28523926,105380.0,105370.0,2.65076044]
[1749876808712,0.28523926,105380.0,105370.0,2.63593185]
[1749876808912,0.28523926,105380.0,105370.0,2.64044338]
[1749876809606,0.28523926,105380.0,105370.0,2.65076044]
[1749876809807,0.28523926,105380.0,105370.0,2.64044338]
[1749876810007,0.28523926,105380.0,105370.0,2.65076044]
[1749876810413,0.28523926,105380.0,105370.0,2.62561479]
[1749876810614,0.28523926,105380.0,105370.0,2.68405924]
[1749876811010,0.28523926,105380.0,105370.0,2.71425924]
[1749876811206,0.28523926,105380.0,105370.0,2.7142586]
[1749876812212,0.28523926,105380.0,105370.0,2.58454838]
[1749876812413,0.28523926,105380.0,105370.0,2.7142186]
[1749876812812,0.28523926,105380.0,105370.0,2.69939001]
[1749876813114,0.28523926,105380.0,105370.0,2.7142186]
[1749876813917,0.28523926,105380.0,105370.0,2.70390338]
[1749876814215,0.28523926,105380.0,105370.0,2.7142186]
[1749876814417,0.28523926,105380.0,105370.0,2.71421859]
[1749876814716,0.28523926,105380.0,105370.0,3.04421859]
[1749876815014,0.28523926,105380.0,105370.0,3.03390321]
[1749876815214,0.28523926,105380.0,105370.0,3.04421837]
[1749876815416,0.28523926,105380.0,105370.0,3.04426155]
[1749876815616,0.28523926,105380.0,105370.0,3.02943314]
[1749876815807,0.28523926,105380.0,105370.0,3.04426158]
[1749876816009,0.28523926,105380.0,105370.0,3.04426155]
[1749876816509,0.28523926,105380.0,105370.0,3.04426154]
[1749876817206,0.28523926,105380.0,105370.0,3.02943313]
[1749876817408,0.28523926,105380.0,105370.0,3.04426154]
[1749876817607,0.28523926,105380.0,105370.0,3.02943313]
[1749876817912,0.28523926,105380.0,105370.0,3.04426154]
[1749876818218,0.28523926,105380.0,105370.0,3.01911797]
[1749876818416,0.28523926,105380.0,105370.0,3.04426154]
[1749876819316,0.28523926,105380.0,105370.0,3.01911797]
[1749876819516,0.28523926,105380.0,105370.0,3.04426154]
[1749876819812,0.28523926,105380.0,105370.0,3.02943313]
[1749876820014,0.25353926,105380.0,105370.0,3.02943313]
[1749876820317,0.25353926,105380.0,105370.0,3.03394638]
[1749876820515,0.25353926,105380.0,105370.0,3.04426977]
[1749876821115,0.25353926,105380.0,105370.0,3.02944136]
[1749876821306,0.25353926,105380.0,105370.0,3.04426977]
[1749876821912,0.25353926,105380.0,105370.0,3.04426873]
[1749876822118,0.25353926,105380.0,105370.0,3.02944032]
[1749876822419,0.25353926,105380.0,105370.0,3.03394638]
[1749876822619,0.25353926,105380.0,105370.0,3.04426873]
[1749876823306,0.25353926,105380.0,105370.0,3.03394638]
[1749876823711,0.25353926,105380.0,105370.0,3.01911797]
[1749876824216,0.25353926,105380.0,105370.0,3.02944128]
[1749876824412,0.25353926,105380.0,105370.0,3.04426969]
[1749876824604,0.25353926,105380.0,105370.0,3.02944128]
[1749876824810,0.25353926,105380.0,105370.0,2.67944128]
[1749876825014,0.25353926,105380.0,105370.0,3.02426969]
[1749876825216,0.25353926,105380.0,105370.0,2.99911797]
[1749876825416,0.25353926,105380.0,105370.0,3.01394638]
[1749876825718,0.25353926,105380.0,105370.0,3.02426969]
[1749876825916,0.25353926,105380.0,105370.0,2.99911797]
[1749876826115,0.06384186,105380.0,105370.0,3.02426969]
[1749876826507,0.06384186,105380.0,105370.0,3.08357817]
[1749876826708,0.06384186,105380.0,105370.0,3.06874976]
[1749876827117,0.25353916,105380.0,105370.0,3.08357817]
[1749876827416,0.25353916,105380.0,105370.0,3.06874976]
[1749876827618,0.25353916,105380.0,105370.0,3.08357817]
[1749876828219,0.25353916,105380.0,105370.0,3.05842645]
[1749876828420,0.25353916,105380.0,105370.0,3.06875023]
[1749876828719,0.25353916,105380.0,105370.0,3.08357863]
[1749876829225,0.22173916,105380.0,105370.0,3.08357863]
[1749876829622,0.22173916,105380.0,105370.0,3.06875023]
[1749876829921,0.22173916,105380.0,105370.0,3.08357863]
[1749876830123,0.22173916,105380.0,105370.0,3.05842645]
[1749876830321,0.22173916,105380.0,105370.0,3.08357863]
[1749876830511,0.22173916,105380.0,105370.0,3.07325485]
[1749876830917,0.22173916,105380.0,105370.0,3.0835797]
[1749876831414,0.22173916,105380.0,105370.0,3.07325485]
[1749876831819,0.22173916,105380.0,105370.0,3.0835797]
[1749876833215,0.22173916,105380.0,105370.0,3.0687513]
[1749876833415,0.22173916,105380.0,105370.0,3.0835797]
[1749876834020,0.03204186,105380.0,105370.0,3.0835797]
[1749876834226,0.03204186,105380.0,105370.0,3.10365485]
[1749876834421,0.03204186,105380.0,105370.0,3.09915111]
[1749876834719,0.03204186,105380.0,105370.0,3.11397924]
[1749876834927,0.00114186,105380.0,105370.0,3.11397912]
[1749876835120,0.00114186,105380.0,105370.0,3.11397897]
[1749876835426,0.00114186,105380.0,105370.0,3.10365444]
[1749876835624,0.00114186,105380.0,105370.0,3.11397897]
[1749876836220,0.00114186,105380.0,105370.0,3.09915098]
[1749876836426,0.00114186,105380.0,105370.0,3.0398425]
[1749876836625,0.00114186,105380.0,105370.0,3.02951797]
[1749876836825,0.00114186,105380.0,105370.0,3.05467053]
[1749876837127,0.00114186,105380.0,105370.0,3.05467052]
[1749876837425,0.00114186,105380.0,105370.0,3.04434598]
[1749876837619,0.00114186,105380.0,105370.0,3.05467052]
[1749876838419,0.00114186,105380.0,105370.0,3.03984251]
[1749876838626,0.00114186,105380.0,105370.0,3.04434597]
[1749876839019,0.00114186,105380.0,105370.0,3.05466778]
[1749876839217,0.00114186,105380.0,105370.0,3.03983978]
[1749876839527,0.00114186,105380.0,105370.0,3.04434597]
[1749876839725,0.00114186,105380.0,105370.0,3.05466778]
[1749876840319,0.00114186,105380.0,105370.0,3.05466861]
[1749876840623,0.00114186,105380.0,105370.0,3.0546686]
[1749876840825,0.00114186,105380.0,105370.0,3.04434598]
[1749876841027,0.00114186,105380.0,105370.0,3.0546686]
[1749876841320,0.00114186,105380.0,105370.0,3.02951797]
[1749876841625,0.00114186,105380.0,105370.0,3.0546686]
[1749876841821,0.00114186,105380.0,105370.0,2.11673399]
[1749876842027,0.00114186,105380.0,105370.0,3.0692566]
[1749876842226,0.00114186,105380.0,105370.0,3.04410598]
[1749876842620,0.00114186,105380.0,105370.0,3.05893398]
[1749876842822,0.00114186,105380.0,105370.0,3.05442859]
[1749876843022,0.00114186,105380.0,105370.0,3.06925659]
[1749876845425,0.00114186,105380.0,105370.0,3.05893398]
[1749876845632,0.00114186,105380.0,105370.0,3.06925659]
[1749876845931,0.00114186,105380.0,105370.0,3.06925853]
[1749876846128,0.00114186,105380.0,105370.0,3.05893398]
[1749876846328,0.00114186,105380.0,105370.0,3.06925659]
[1749876846529,0.00114186,105380.0,105370.0,3.04410598]
[1749876846829,0.00114186,105380.0,105370.0,3.06925659]
[1749876847032,0.00114186,105380.0,105370.0,3.05442859]
[1749876847232,0.00114186,105380.0,105370.0,3.04410598]
[1749876847532,0.00114186,105380.0,105370.0,3.06925659]
[1749876847731,0.00114186,105380.0,105370.0,3.04410598]
[1749876847932,0.00114186,105380.0,105370.0,3.05893398]
[1749876848136,0.00114186,105380.0,105370.0,3.06925659]
[1749876848523,0.00114186,105380.0,105370.0,3.05893398]
[1749876848927,0.00114186,105380.0,105370.0,3.06925723]
[1749876849229,0.32606741,105400.0,105390.0,0.1896795]
[1749876849424,0.35816741,105400.0,105390.0,1.73402092]
[1749876849630,0.35816741,105400.0,105390.0,2.64645432]
[1749876849833,0.35816741,105400.0,105390.0,2.52379614]
[1749876850030,0.52047763,105400.0,105390.0,2.10801706]
[1749876850336,0.55057763,105400.0,105390.0,2.06355088]
[1749876850537,0.55157763,105400.0,105390.0,2.17843396]
[1749876850739,0.55257763,105400.0,105390.0,2.17843417]
[1749876850933,0.55257763,105400.0,105390.0,2.16811262]
[1749876851241,0.55257763,105400.0,105390.0,2.19326153]
[1749876851440,0.55257763,105400.0,105390.0,2.18293996]
[1749876851741,0.55257763,105400.0,105390.0,2.16811262]
[1749876852036,0.55257763,105400.0,105390.0,2.18293995]
[1749876852338,0.62721451,105400.0,105390.0,2.17843373]
[1749876852634,0.62721451,105400.0,105390.0,2.19326107]
[1749876852842,0.63667972,105400.0,105390.0,2.19326106]
[1749876853240,0.63667972,105400.0,105390.0,2.19326105]
[1749876853436,0.63667972,105400.0,105390.0,2.18293994]
[1749876853629,0.63667972,105400.0,105390.0,2.19326105]
[1749876854034,0.63667972,105400.0,105390.0,2.55406106]
[1749876854335,0.63667972,105400.0,105390.0,2.52891262]
[1749876854540,0.63667972,105400.0,105390.0,2.55406061]
[1749876854740,0.63667972,105400.0,105390.0,2.54373968]
[1749876854936,0.63667972,105400.0,105390.0,2.53923347]
[1749876855136,0.63667972,105400.0,105390.0,2.55406051]
[1749876856036,0.63667972,105400.0,105390.0,2.55406057]
[1749876856441,0.63667972,105400.0,105390.0,2.54373966]
[1749876856642,0.63667972,105400.0,105390.0,2.55406056]
[1749876857039,0.63667972,105400.0,105390.0,2.54373966]
[1749876857338,0.63667972,105400.0,105390.0,1.4673561]
[1749876857647,0.63667972,105400.0,105390.0,2.52883262]
[1749876857850,0.63667972,105400.0,105390.0,2.55397336]
[1749876858039,0.63667972,105400.0,105390.0,2.55397334]
[1749876858444,0.63667972,105400.0,105390.0,2.55397335]
[1749876859249,0.63667972,105400.0,105390.0,2.53914631]
[1749876859451,0.63667972,105400.0,105390.0,2.55397335]
[1749876859645,0.63667972,105400.0,105390.0,2.53914631]
[1749876859851,0.63667972,105400.0,105390.0,2.55397335]
[1749876860047,0.63667972,105400.0,105390.0,1.47186944]
[1749876860252,0.63667972,105400.0,105390.0,2.41394944]
[1749876860450,0.65667972,105400.0,105390.0,2.41808779]
[1749876860753,0.65667972,105400.0,105390.0,2.51364141]
[1749876861052,0.65667972,105400.0,105390.0,2.55811171]
[1749876861254,0.65667972,105400.0,105390.0,2.54779802]
[1749876861749,1.01747972,105400.0,105390.0,2.18699802]
[1749876861953,1.4817039,105400.0,105390.0,0.07132338]
[1749876862151,1.4817039,105400.0,105390.0,0.00413835]
[1749876862449,2.4237839,105400.0,105390.0,0.02926581]
[1749876863055,2.4237839,105400.0,105390.0,0.0292684]
[1749876863357,2.29407368,105400.0,105390.0,0.01896779]
[1749876863542,2.29407368,105400.0,105390.0,0.0292684]
[1749876863746,2.29407368,105400.0,105390.0,0.01443896]
[1749876863942,2.29407368,105400.0,105390.0,0.0292684]
[1749876864346,2.29407368,105400.0,105390.0,0.02926839]
[1749876864652,2.29407368,105400.0,105390.0,0.01443895]
[1749876864853,2.4237839,105400.0,105390.0,0.02926839]
[1749876865055,2.4237839,105400.0,105390.0,0.02926843]
[1749876865359,2.4237839,105400.0,105390.0,0.02926846]
[1749876865748,2.4237839,105400.0,105390.0,0.01896784]
[1749876867255,2.57204449,105400.0,105390.0,0.01896784]
[1749876868859,2.57204449,105400.0,105390.0,0.00413835]
[1749876869454,2.4237839,105400.0,105390.0,0.01896782]
[1749876869753,2.4237839,105400.0,105390.0,0.01896784]
[1749876870157,2.4237839,105400.0,105390.0,0.00413835]
[1749876870352,2.4237839,105400.0,105390.0,0.01896784]
[1749876871657,2.4237839,105400.0,105390.0,0.00413835]
[1749876872061,2.4237839,105400.0,105390.0,0.01896782]
[1749876872263,2.4237839,105400.0,105390.0,0.00413835]
[1749876872456,2.4237839,105400.0,105390.0,0.01896784]
[1749876872955,2.4237839,105400.0,105390.0,0.00413835]
[1749876873865,2.4237839,105400.0,105390.0,0.01896785]
[1749876874164,2.3289039,105400.0,105390.0,0.01896785]
[1749876875067,2.3289039,105400.0,105390.0,0.00413835]
[1749876875258,2.3289039,105400.0,105390.0,0.01896785]
[1749876875863,2.3289039,105400.0,105390.0,0.00413835]
[1749876876065,2.3289039,105400.0,105390.0,0.01896785]
[1749876876264,2.3289039,105400.0,105390.0,0.00413835]
[1749876876465,2.3289039,105400.0,105390.0,0.02930336]
[1749876876666,2.3289039,105400.0,105390.0,0.01896785]
[1749876876868,2.3289039,105400.0,105390.0,0.00413835]
[1749876877059,2.3289039,105400.0,105390.0,0.01896784]
[1749876877766,2.35855602,105400.0,105390.0,0.01896784]
[1749876877965,2.35855602,105400.0,105390.0,0.00413835]
[1749876878166,2.35855602,105400.0,105390.0,0.01896825]
[1749876878567,2.35855602,105400.0,105390.0,0.01896829]
[1749876880067,2.35855602,105400.0,105390.0,0.00413835]
[1749876880267,2.35855602,105400.0,105390.0,0.01896833]
[1749876880571,2.35855602,105400.0,105390.0,0.01896835]
[1749876880771,2.35855602,105400.0,105390.0,0.00413835]
[1749876880971,2.35855602,105400.0,105390.0,0.01896833]
[1749876881171,2.35855602,105400.0,105390.0,0.00413835]
[1749876881475,2.35855602,105400.0,105390.0,0.01896832]
[1749876881873,2.35859602,105400.0,105390.0,0.00413835]
[1749876882065,2.06927236,105400.0,105390.0,0.00413835]
[1749876882262,1.12715236,105400.0,105390.0,0.00413835]
[1749876882467,2.32869798,105400.0,105390.0,0.01896811]
[1749876882669,2.32869798,105400.0,105390.0,0.01896788]
[1749876883170,2.32869798,105400.0,105390.0,0.00413835]
[1749876883569,2.19898776,105400.0,105390.0,0.01896788]
[1749876883765,2.19898776,105400.0,105390.0,0.00413835]
[1749876884172,2.19898776,105400.0,105390.0,0.01896788]
[1749876884472,2.2288858,105400.0,105390.0,0.01896788]
[1749876884669,2.2288858,105400.0,105390.0,0.00413835]
[1749876884870,2.2288858,105400.0,105390.0,0.01896788]
[1749876885567,2.2288858,105400.0,105390.0,0.00413835]
[1749876886075,2.2288858,105400.0,105390.0,0.01896788]
[1749876886573,2.1990318,105400.0,105390.0,0.01896788]
[1749876887074,2.1990318,105400.0,105390.0,0.02930523]
[1749876887271,2.1990318,105400.0,105390.0,0.02930521]
[1749876887574,2.1990318,105400.0,105390.0,0.01896786]
[1749876887775,2.1990318,105400.0,105390.0,0.02930521]
[1749876887973,2.1990318,105400.0,105390.0,0.00413835]
[1749876888277,2.1990318,105400.0,105390.0,0.02930522]
[1749876888771,2.1990318,105400.0,105390.0,0.0144757]
[1749876888982,2.1990318,105400.0,105390.0,0.02930522]
[1749876889376,2.1990318,105400.0,105390.0,0.01896787]
[1749876889574,2.1990318,105400.0,105390.0,0.02930298]
[1749876889775,2.1990318,105400.0,105390.0,0.00413835]
[1749876889981,2.32874202,105400.0,105390.0,0.01896787]
[1749876890180,2.32874202,105400.0,105390.0,0.02930298]
[1749876890480,2.35859602,105400.0,105390.0,0.02930298]
[1749876890681,2.35859602,105400.0,105390.0,0.02930297]
[1749876890882,2.35859602,105400.0,105390.0,0.02930298]
[1749876891174,2.35859602,105400.0,105390.0,0.01896787]
[1749876891776,2.35859602,105400.0,105390.0,0.02930298]
[1749876892281,2.35859602,105400.0,105390.0,0.02931072]
[1749876892676,2.35859602,105400.0,105390.0,0.00413835]
[1749876892875,2.35859602,105400.0,105390.0,0.0144812]
[1749876893075,2.35859602,105400.0,105390.0,0.02931072]
[1749876894584,2.35859602,105400.0,105390.0,0.02931071]
[1749876894877,2.35859602,105400.0,105390.0,0.02931072]
[1749876895079,2.35859602,105400.0,105390.0,0.0293112]
[1749876895485,2.35859602,105400.0,105390.0,0.01896787]
[1749876895683,2.35859602,105400.0,105390.0,0.01448168]
[1749876895883,2.35859602,105400.0,105390.0,0.01896787]
[1749876896083,2.35859602,105400.0,105390.0,0.02931219]
[1749876896284,2.35859602,105400.0,105390.0,0.01448267]
[1749876896680,2.35859602,105400.0,105390.0,0.02931219]
[1749876897383,2.35859602,105400.0,105390.0,0.01448267]
[1749876897584,2.35859602,105400.0,105390.0,0.00413835]
[1749876897889,2.35859602,105400.0,105390.0,0.02931219]
[1749876898788,2.35859602,105400.0,105390.0,0.02931152]
[1749876898994,2.35859602,105400.0,105390.0,0.01896787]
[1749876899187,2.35859602,105400.0,105390.0,0.02931141]
[1749876899387,2.35859602,105400.0,105390.0,0.01448189]
[1749876899588,2.35859602,105400.0,105390.0,0.02931142]
[1749876899784,2.35859602,105400.0,105390.0,0.00413835]
[1749876899989,2.35859602,105400.0,105390.0,0.01448084]
[1749876900188,2.35859602,105400.0,105390.0,0.02931034]
[1749876900491,2.35859602,105400.0,105390.0,0.00413835]
[1749876900687,2.35859602,105400.0,105390.0,0.02931026]
[1749876901288,2.35859602,105400.0,105390.0,0.01896787]
[1749876902294,2.35859602,105400.0,105390.0,0.02931026]
[1749876902496,2.35859602,105400.0,105390.0,0.01448075]
[1749876902888,2.35859602,105400.0,105390.0,0.02931058]
[1749876903088,2.35859602,105400.0,105390.0,0.01896787]
[1749876903287,2.35859602,105400.0,105390.0,0.00413835]
[1749876903491,2.35859602,105400.0,105390.0,0.02931058]
[1749876903693,2.35859602,105400.0,105390.0,0.01896787]
[1749876904098,2.35859602,105400.0,105390.0,0.00413835]
[1749876904298,2.35859602,105400.0,105390.0,0.02931058]
[1749876904798,2.35859602,105400.0,105390.0,0.01448106]
[1749876904992,2.35859602,105400.0,105390.0,0.01896787]
[1749876905192,2.35859602,105400.0,105390.0,0.02931058]
[1749876905387,2.35859602,105400.0,105390.0,0.00413835]
[1749876905594,2.35859602,105400.0,105390.0,0.01896787]
[1749876905797,2.35859602,105400.0,105390.0,0.02931058]
[1749876906896,2.35859602,105400.0,105390.0,0.01896787]
[1749876907106,2.35859602,105400.0,105390.0,0.01448106]
[1749876907400,2.35859602,105400.0,105390.0,0.02931058]
[1749876907802,2.35859602,105400.0,105390.0,0.02931059]
[1749876908496,2.35859602,105400.0,105390.0,0.02931074]
[1749876909396,2.35859602,105400.0,105390.0,0.01896787]
[1749876909690,2.35859602,105400.0,105390.0,0.02931074]
[1749876909898,2.35859602,105400.0,105390.0,0.02931075]
[1749876910696,2.35859602,105400.0,105390.0,0.01896787]
[1749876911199,2.35859602,105400.0,105390.0,0.02931076]
[1749876911501,2.35859602,105400.0,105390.0,0.01448123]
[1749876911797,2.35859602,105400.0,105390.0,0.01448124]
[1749876912002,2.35859602,105400.0,105390.0,0.01448125]
[1749876912399,2.35859602,105400.0,105390.0,0.02931077]
[1749876913302,2.35859602,105400.0,105390.0,0.00413835]
[1749876913502,2.35859602,105400.0,105390.0,0.02931113]
[1749876913802,2.35859602,105400.0,105390.0,0.02931134]
[1749876913997,2.35859602,105400.0,105390.0,0.00413835]
[1749876914201,2.35859602,105400.0,105390.0,0.02931149]
[1749876914401,2.35859602,105400.0,105390.0,0.02931143]
[1749876914603,2.35859602,105400.0,105390.0,0.01896787]
[1749876914897,2.35859602,105400.0,105390.0,0.00413835]
[1749876915294,2.35859602,105400.0,105390.0,0.01896825]
[1749876915491,2.35859602,105400.0,105390.0,0.01448212]
[1749876915696,2.35859602,105400.0,105390.0,0.01896825]
[1749876915897,2.35859602,105400.0,105390.0,0.00413835]
[1749876916098,2.35859602,105400.0,105390.0,0.02931202]
[1749876916503,2.35859602,105400.0,105390.0,0.01896825]
[1749876916706,2.35859602,105400.0,105390.0,0.02931202]
[1749876917205,2.35859602,105400.0,105390.0,0.00413835]
[1749876917403,2.35859602,105400.0,105390.0,0.01896825]
[1749876917707,2.35859602,105400.0,105390.0,0.00413835]
[1749876918503,2.35859602,105400.0,105390.0,0.01896825]
[1749876918706,2.21033543,105400.0,105390.0,0.01896825]
[1749876919005,2.41744,105400.0,105390.0,0.01896825]
[1749876920805,2.41732,105400.0,105390.0,0.01896825]
[1749876921599,2.41732,105400.0,105390.0,0.00413835]
[1749876921798,2.41732,105400.0,105390.0,0.01896825]
[1749876921998,2.41732,105400.0,105390.0,0.00413835]
[1749876922205,2.41732,105400.0,105390.0,0.01896825]
[1749876922402,2.41732,105400.0,105390.0,0.00413835]
[1749876923010,2.41732,105400.0,105390.0,0.01896825]
[1749876924407,2.41732,105400.0,105390.0,0.00413835]
[1749876924603,2.41732,105400.0,105390.0,0.01896825]
[1749876924803,2.41732,105400.0,105390.0,0.00413835]
[1749876925004,1.47532,105400.0,105390.0,0.01896825]
[1749876925212,2.41732,105400.0,105390.0,0.01896825]
[1749876925404,2.41732,105400.0,105390.0,0.01896804]
[1749876926710,2.56559441,105400.0,105390.0,0.00413835]
[1749876926902,2.35848984,105400.0,105390.0,0.01896804]
[1749876927410,2.35848984,105400.0,105390.0,0.00413835]
[1749876927610,2.35848984,105400.0,105390.0,0.01896804]
[1749876928099,2.35848984,105400.0,105390.0,0.00413835]
[1749876928299,2.35848984,105400.0,105390.0,0.02929865]
[1749876928604,2.35848984,105400.0,105390.0,0.01896804]
[1749876928801,2.35848984,105400.0,105390.0,0.02929721]
[1749876929406,2.35848984,105400.0,105390.0,0.00413835]
[1749876929612,2.35848984,105400.0,105390.0,0.01446752]
[1749876929812,2.35848984,105400.0,105390.0,0.02929721]
[1749876930402,2.35848984,105400.0,105390.0,0.00413835]
[1749876930607,2.35848984,105400.0,105390.0,0.02929721]
[1749876930914,2.35848984,105400.0,105390.0,0.01896804]
[1749876931113,2.35848984,105400.0,105390.0,0.02929721]
[1749876931314,2.35848984,105400.0,105390.0,0.0292962]
[1749876931616,2.35848984,105400.0,105390.0,0.00413835]
[1749876931807,2.35848984,105400.0,105390.0,0.0292962]
[1749876932009,2.35848984,105400.0,105390.0,0.01896804]
[1749876933308,2.35848984,105400.0,105390.0,0.00413835]
[1749876934413,2.35848984,105400.0,105390.0,0.01896806]
[1749876935120,2.35848984,105400.0,105390.0,0.00413835]
[1749876935514,2.35848984,105400.0,105390.0,0.01896806]
[1749876935814,2.35848984,105400.0,105390.0,0.00413835]
[1749876936015,2.35848984,105400.0,105390.0,0.01896805]
[1749876936417,2.35848984,105400.0,105390.0,0.00413835]
[1749876936618,2.35848984,105400.0,105390.0,0.01896805]
[1749876937514,2.35848984,105400.0,105390.0,0.00413835]
[1749876937721,2.35848984,105400.0,105390.0,0.01896805]
[1749876937922,2.35848984,105400.0,105390.0,0.00413835]
[1749876938116,2.35848984,105400.0,105390.0,0.01896805]
[1749876938518,2.35848984,105400.0,105390.0,0.00413835]
[1749876938817,2.35848984,105400.0,105390.0,0.01896805]
[1749876940719,2.35848984,105400.0,105390.0,0.00413835]
[1749876940922,1.41648984,105400.0,105390.0,0.01896805]
[1749876941116,2.35844984,105400.0,105390.0,0.01896805]
[1749876941821,2.35844984,105400.0,105390.0,0.00413835]
[1749876942016,2.35844984,105400.0,105390.0,0.01896805]
[1749876943015,2.35844984,105400.0,105390.0,0.00413835]
[1749876943217,2.35844984,105400.0,105390.0,0.01896805]
[1749876944319,2.35844984,105400.0,105390.0,0.00413835]
[1749876944724,2.35844984,105400.0,105390.0,0.01896805]
[1749876945021,2.35844984,105400.0,105390.0,0.00413835]
[1749876945223,2.35844984,105400.0,105390.0,0.01896805]
[1749876946520,2.35844984,105400.0,105390.0,0.00413835]
[1749876946726,2.35844984,105400.0,105390.0,0.01896805]
[1749876947026,2.35844984,105400.0,105390.0,0.00413835]
[1749876947221,2.35844984,105400.0,105390.0,0.01896805]
[1749876947620,2.35844984,105400.0,105390.0,0.00413835]
[1749876948020,2.35844984,105400.0,105390.0,0.01896805]
[1749876948525,2.35844984,105400.0,105390.0,0.02929584]
[1749876948919,2.35844984,105400.0,105390.0,0.02929553]
[1749876949626,2.35844984,105400.0,105390.0,0.01446582]
[1749876949826,2.35844984,105400.0,105390.0,0.02929552]
[1749876950522,2.35844984,105400.0,105390.0,0.00413835]
[1749876950723,2.35844984,105400.0,105390.0,0.02929552]
[1749876950918,2.35844984,105400.0,105390.0,0.00413835]
[1749876951227,2.35844984,105400.0,105390.0,0.01896805]
[1749876951428,2.35844984,105400.0,105390.0,0.02929552]
[1749876951624,2.35844984,105400.0,105390.0,0.01446582]
[1749876952028,2.35844984,105400.0,105390.0,0.02929553]
[1749876952226,2.35844984,105400.0,105390.0,0.01446583]
[1749876952428,2.35844984,105400.0,105390.0,0.01446584]
[1749876952627,2.35844984,105400.0,105390.0,0.01446583]
[1749876952819,2.35844984,105400.0,105390.0,0.02929553]
[1749876953224,2.35844984,105400.0,105390.0,0.01896805]
[1749876953429,2.35844984,105400.0,105390.0,0.02929586]
[1749876953728,2.35844984,105400.0,105390.0,0.02929559]
[1749876953929,2.35844984,105400.0,105390.0,0.02929583]
[1749876954129,2.35844984,105400.0,105390.0,0.02929601]
[1749876954428,2.35844984,105400.0,105390.0,0.01896805]
[1749876954628,2.35844984,105400.0,105390.0,0.02929619]
[1749876955128,2.35844984,105400.0,105390.0,0.02929628]
[1749876955325,2.35844984,105400.0,105390.0,0.02929634]
[1749876955726,2.35844984,105400.0,105390.0,0.00413835]
[1749876955927,2.35844984,105400.0,105390.0,0.02929635]
[1749876956127,2.35844984,105400.0,105390.0,0.00413835]
[1749876956527,2.35844984,105400.0,105390.0,0.01896805]
[1749876956929,2.35844984,105400.0,105390.0,0.02929756]
[1749876957327,2.35844984,105400.0,105390.0,0.01446786]
[1749876957629,2.35844984,105400.0,105390.0,0.01896805]
[1749876957829,2.35844984,105400.0,105390.0,0.00413835]
[1749876958131,2.35844984,105400.0,105390.0,0.01896805]
[1749876958731,2.35844984,105400.0,105390.0,0.00413835]
[1749876958935,2.35844984,105400.0,105390.0,0.01896805]
[1749876959132,2.35844984,105400.0,105390.0,0.00413835]
[1749876959331,2.35844984,105400.0,105390.0,0.01896805]
[1749876959833,2.35844984,105400.0,105390.0,0.00413835]
[1749876960036,2.35844984,105400.0,105390.0,0.01896805]
[1749876960836,0.1896791,105390.0,105380.0,0.06334186]
[1749876961024,1.25462141,105390.0,105380.0,0.02515975]
[1749876961230,0.1896971,105380.0,105370.0,0.00749207]
[1749876961531,1.94818732,105380.0,105370.0,0.02078782]
[1749876961737,2.06667559,105380.0,105370.0,0.00749207]
[1749876961925,2.06667559,105380.0,105370.0,0.02078771]
[1749876962123,2.06667559,105380.0,105370.0,0.02078759]
[1749876962628,2.06667559,105380.0,105370.0,0.02078756]
[1749876963031,2.06667559,105380.0,105370.0,0.00749207]
[1749876963233,0.30818537,105380.0,105370.0,1.37261339]
[1749876963431,0.2785385,105380.0,105370.0,1.65705654]
[1749876963635,0.32040732,105380.0,105370.0,1.31705654]
[1749876964941,0.32040732,105380.0,105370.0,1.32119489]
[1749876965141,0.32040732,105380.0,105370.0,1.09119489]
[1749876965445,0.1906971,105380.0,105370.0,1.09119489]
[1749876965636,0.32040732,105380.0,105370.0,1.09119489]
[1749876966141,0.1906971,105380.0,105370.0,1.09119489]
[1749876966542,0.2795385,105380.0,105370.0,1.09119489]
[1749876967244,0.2795385,105380.0,105370.0,1.66119489]
[1749876967442,0.0898414,105380.0,105370.0,1.66119489]